{"text_format":"2","workbook":"xlsx","n_sheets":5,"sheets":["Общие сведения","Показатели","Цели оценки","Аффилированные организации","Бланк подтверждения"],"not_rendered":{"charts":0,"images":1,"macros":0,"external_links":0,"defined_names":0,"comments":2,"pivot_tables":0},"unopened":[],"bounds":{"document_bytes":16777216,"sheet_cells":100000,"run_cost":"one","rows_first":2000,"rows_last":500,"rows_between":2000,"halvings":0,"cell_chars":16384,"cell_head_chars":4096},"cells_cut":0,"cells_raw":0,"read":"whole","date_system":"1900"}

{"sheet":"Общие сведения","index":0,"n_rows":82,"n_cols":3,"rows_kept":82,"cut":false,"hidden":false,"merged":[[26,0,26,2],[31,0,31,2],[29,1,29,2],[30,1,30,2],[47,1,47,2],[43,0,44,0],[41,1,41,2],[42,0,42,2],[45,0,46,0],[32,0,33,0],[34,1,34,2],[34,0,35,0],[23,0,25,0],[27,1,27,2],[28,1,28,2],[27,0,28,0],[60,0,60,2],[56,1,56,2],[57,0,58,0],[36,1,36,2],[37,0,38,0],[37,1,37,2],[38,1,38,2],[39,1,39,2],[39,0,40,0],[40,1,40,2],[45,1,45,2],[46,1,46,2],[81,0,81,2],[80,0,80,2],[78,0,79,0],[61,0,62,0],[72,0,72,2],[71,1,71,2],[70,0,70,2],[73,0,76,0],[77,0,77,2],[66,0,67,0],[0,0,0,2],[16,0,17,0],[19,0,20,0],[1,0,1,2],[2,0,2,2],[3,0,3,2],[4,0,4,2],[5,0,5,2],[18,0,18,2],[6,0,6,2],[7,2,15,2],[55,1,55,2],[54,0,55,0],[59,1,59,2],[57,1,57,2],[58,1,58,2],[54,1,54,2],[35,1,35,2],[52,1,52,2],[53,0,53,2],[48,0,49,0],[48,1,48,2],[49,1,49,2],[50,0,51,0],[50,1,50,2],[51,1,51,2]]}
["АНКЕТА RAEX (РАЭКС-АНАЛИТИКА)\n\"РЭНКИНГИ ОЦЕНОЧНЫХ КОМПАНИЙ РОССИИ\""]
["При одновременном участии в рэнкингах оценочных организаций и в рэнкингах оценочных групп нужно заполнить две анкеты."]
["Показатель выручки группы за 2024 год необходимо приводить с учётом состава группы в 2025 году."]
["При отличии выручки в анкете и в информационных системах (СПАРК, Ресурс БФО), составитель рэнкингов отдаёт приоритет показателю, отражённому в информационных системах."]
["В качестве справочной информации в рэнкингах может отражаться информация о среднесписочной численности сотрудников компании за исследуемый период согласно форме расчётов по страховым взносам."]
["Пожалуйста ознакомьтесь с принципами составления рэнкингов (см. файл Metod.doc)."]
[]
["Наименование организации (с указанием организационно-правовой формы, сокращённо)."]
["ИНН организации."]
["Фактический адрес."]
["Юридический адрес организации."]
["Почтовый адрес (для отправки документов курьерской службой)."]
["Номер телефона с указанием городского кода (достаточно привести один номер)."]
["Электронный адрес."]
["Адрес интернет-сайта."]
["Период (год), с которого Ваша компания осуществляет оценочную деятельность."]
["Число аффилированных / зависимых лиц, с учетом головной организации, предоставляющих услуги оценки (ПРИЗНАКИ АФФИЛИРОВАННОСТИ отражены в файле Metod.doc или Instruct.doc).","2024 год","2025 год"]
[]
[]
["1.* Суммарная выручка компании или группы от осуществления всех видов деятельности (в рублях, без НДС, согласно форме №2 бухгалтерской отчётности).","2024 год","2025 год"]
[null,null,{"$f":"Показатели!AB14","v":0}]
["1.1.* Суммарная выручка компании или группы ОТ ОСУЩЕСТВЛЕНИЯ ОЦЕНОЧНОЙ ДЕЯТЕЛЬНОСТИ (без учёта выручки от аудиторских и консалтинговых услуг, а также других видов деятельности, не имеющих отношения к оценке, в рублях, без НДС, исключая внутригрупповые доходы из пункта №1.2).",null,{"$f":"Показатели!AB11","v":0}]
["1.2.* Внутригрупповой доход (указывается при участии группы компаний). Этот показатель (выручка от операций между участниками группы) не может учитываться при расчёте выручки от услуг оценки, указанного в пункте №1.1."]
["1.3. Суммарная выручка от оценки за первые шесть месяцев 2026, 2025 и 2024 гг. Информация запрашивается для расчётов общей динамики рынка.","За 6 месяцев 2024 года"]
[null,"За 6 месяцев 2025 года"]
[null,"За 6 месяцев 2026 года"]
[]
["2. Лицензия / право на работу с государственной тайной (да / нет; наличие подтверждается соответствующим документом или ссылкой на сайт).","По состоянию на 31.12.2025"]
[]
["3*. Величина страхового покрытия ответственности ОЦЕНОЧНОЙ КОМПАНИИ (юридического лица). Для группы оценочных компаний указывается общая сумма их страховок (в рублях, без округления). Приводятся страховки действующие на 31.12.2025."]
["4. (СПРАВОЧНО) Наличие в компании национальной или международной системы менеджмента качества (да / нет). Может быть отражено в рэнкинге в качестве справочной информации (при документальном подтверждении) и не учитывается при расчёте рейтингового функционала."]
[]
["5.* Численность оценщиков (членов СРО) по основному месту работы (штатные оценщики). Для группы компаний приводятся суммарные сведения головной оценочной компании и аффилированных лиц, осуществляющих оценочную деятельность. Для подтверждения соответствующей информации предоставляется справка СРО (или выписка) о периоде и характере работы оценщика в компании (основное место). Без подтверждения, агентство вправе не учитывать анкетную информацию о численности оценщиков.","На 31.12.2024","На 31.12.2025"]
[]
["6. Величина страхового покрытия ответственности штатных оценщиков (членов СРО), обозначенных в пункте №5 (приводятся страховки действующие на 31.12.2025).","По состоянию на 31.12.2025"]
[]
["7. Количество квалификационных аттестатов у штатных оценщиков, полученных в результате сдачи квалификационного экзамена (учитываются аттестаты оценщиков, обозначенных в пункте №5)."]
["8. Количество международных квалификаций в области оценки у штатных оценщиков из приводимого перечня: RICS, TEGoVA, ECI, EECO, IACVA, ASA, CCIM.","За весь стаж работы оценщиков, \nработающих в компании по состоянию на 31.12.2025"]
[]
["9. Численность штатных оценщиков, имеющих одновременно стаж в оценке от 10 лет и три квалификации (квалификационный экзамен).","По состоянию на 31.12.2025"]
[]
["10. Численность штатных оценщиков - членов экспертного совета СРО."]
[]
["11.* Численность оценщиков (членов СРО), работающих в компании по совместительству. Для группы компаний приводятся суммарные сведения головной оценочной компании и аффилированных лиц, осуществляющих оценочную деятельность. Для подтверждения соответствующей информации предоставляется справка СРО (или выписка) о периоде и характере работы оценщика в компании (совместительство). Без подтверждения, агентство вправе не учитывать анкетную информацию о численности оценщиков.","На 31.12.2024","На 31.12.2025"]
[]
["12. Величина страхового покрытия ответственности оценщиков совместителей (членов СРО), обозначенных в пункте №11 (приводятся страховки действующие на 31.12.2025).","По состоянию на 31.12.2025"]
[]
["13. Количество квалификационных аттестатов у оценщиков совместителей, полученных в результате сдачи квалификационного экзамена (учитываются аттестаты оценщиков из пункта №11)."]
["14. Количество международных квалификаций в области оценки у оценщиков совместителей из приводимого перечня: RICS, TEGoVA, ECI, EECO, IACVA, ASA, CCIM.","За весь стаж работы оценщиков, \nработающих в компании по состоянию на 31.12.2025"]
[]
["15. Численность оценщиков совместителей, имеющих одновременно стаж в оценке от 10 лет и три квалификации (квалификационный экзамен).","По состоянию на 31.12.2025"]
[]
["16. Численность оценщиков совместителей - членов экспертного совета СРО."]
[]
["17. Аккредитации и отборы федерального уровня. Укажите, пожалуйста, отборы / аккредитации которые прошла ваша организация, из числа проводимых следующими организаторами в 2025 году (описание аккредитаций см. в файлах Metod.doc и Otbory.doc):\n\n1. ВЭБ.РФ (оценка бизнеса, недвижимости, прав требований, НМА).\n2. ВЭБ.РФ (оценка движимого имущества).\n3. Госкорпорация «Росатом» (оценка акций, долей).\n4. Госкорпорация «Росатом» (оценка имущественного комплекса, недвижимости).\n5. АО \"Россельхозбанк\" (пролонгация аккредитации).\n6. ПАО \"Промсвязьбанк\" (оценка бизнеса, имущественных комплексов, недвижимости, движимого имущества, специализированных активов).\n7. ООО \"ДОМ.РФ. Управление активами\" (предварительный отбор для оценки недвижимости, прав требований, ценных бумаг, арендной платы или платы за наём).\n8. АФК \"Система\" (услуги по оценке бизнеса, недвижимости, НМА и ИС на 2026 – 2027 гг.).\n9. ППК \"Российский экологический оператор\" (отбор 2025 года).\n10. ПАО \"НК \"Роснефть\" (аккредитация).\n11. ПАО \"Газпром\" (аккредитация на проведение оценки).\n12. ПАО \"ЛУКОЙЛ\" (аккредитация на 2025 – 2027 гг.).\n\nПри заполнении справа необходимо привести названия с порядковым номером из приведённого выше перечня. В рэнкинге учитываются только верифицированные и подтвержденные участником отборы / аккредитации.","За 2025 год"]
[null,"Приведите, пожалуйста, в этой ячейке названия отборов и аккредитаций (с порядковым номером) из приводимого списка, которые прошла ваша компания (или компании группы)."]
["Итого: количество аккредитаций, отборов, конкурсов федерального уровня"]
["18. Укажите, пожалуйста, имеющиеся у Вашей организации (или её оценщиков) публичные (открытые) национальные и / или международные премии, награды за заслуги в области оценки (критерий учитывается только при предоставлении соответствующих подтверждающих документов), присвоенные в 2025 году (или присвоенные в 2026 году по итогам 2025 года).","За 2025 год"]
[null,"Укажите, пожалуйста, название премий, наград. Если список большой, то пришлите пожалуйста этот список в отдельном файле."]
["Итого: количество наград и премий"]
[]
["19. Общее количество отчётов по оценке (для расчёта общего числа отчётов по всем участникам).","2024 год","2025 год"]
[null,null,{"$f":"Показатели!AD11","v":0}]
["-- количество отчётов по оценке объектов с балансовой стоимостью от 1 млрд. рублей",null,{"$f":"Показатели!AE11","v":0}]
["-- количество число отчётов по оценке объектов государственного сектора",null,{"$f":"Показатели!AF11","v":0}]
["-- количество число отчётов по оценке объектов ВПК (ОПК)",null,{"$f":"Показатели!AG11","v":0}]
["20. Выручка: оценка при кредитовании юридических лиц (без НДС).","2024 год","2025 год"]
[]
["21. Выручка: оценка при ипотечном кредитовании (без НДС)."]
["22. Выручка: оценка в целях оспаривания результатов ГКО недвижимого имущества (без НДС)."]
[]
["23. Назовите из вашей практики организации, которые в 2025 году в мероприятиях, связанных с отбором или аккредитацией компаний, одним из требований к подрядчикам указывали участие в рэнкингах агентства RAEX (ООО \"РАЭКС-Аналитика\")."]
[]
["24. Контактная информация для взаимодействия.","Должность","Ф.И.О."]
[]
[null,"Номер телефона","E-mail"]
[]
[]
["25. Должность и ФИО руководителя оценочной компании.","Должность","Ф.И.О."]
[]
["Пояснения к пунктам помеченным (*) смотрите в комментариях к анкете в файле Instruct.doc"]
["Пожалуйста, перейдите к заполнению следующего листа"]

{"sheet":"Показатели","index":1,"n_rows":15,"n_cols":34,"rows_kept":15,"cut":false,"hidden":false,"merged":[[14,0,14,33],[0,0,0,33],[11,1,11,26],[12,1,12,26],[13,1,13,26],[11,29,13,33],[1,0,1,33]]}
["Этот лист является обязательным для заполнения. Пояснения смотрите в комментариях к анкете в файле instruct.doc"]
["Укажите выручку от оценочных услуг предприятиям перечисленных отраслей экономики за 2025 год (без НДС). Отраслевую структуру выручки нужно приводить без учёта выручки, полученной от услуг не относящихся к оценке, и без учёта внутригрупповых оборотов. Результат в строке \"Итого по всем видам деятельности\" (ячейка АС14) в процентах = 100% (пояснение см. в файле Instruct.doc). Если Ваша компания участвовала в проекте \"Российский аудит и консалтинг, 2025 год\", то структура выручки от оценки должна соответствовать структуре, уже приведенной в рамках этого проекта."]
[" Виды услуг / отрасли экономики","Агропромышленный\nкомплекс","Легкая промышленность","Лесная,\nдеревообрабатывающая и\n целлюлозно-бумажная\n промышленность","Машиностроение","Металлургический комплекс\n(в т.ч. Угольная\nпромышленность)","Нефтяная и\n нефтегазовая\n промышленность","Пищевая\n промышленность","Промышленность\nдрагоценных металлов и алмазов","Промышленность строительных\n материалов","Фармацевтика","Химический комплекс\n(в т.ч. нефтехимическая\nпромышленность)","Электроэнергетика","Строительство и девелопмент","Торговля","Транспорт","Связь","Банки","Страховые компании","Лизинговые компании","Биржи, инвестиционные компании","НПФ","Государственное управление","ЖКХ","ИТ","Здравоохранение","Прочие отрасли\n или виды экономической\nдеятельности","Всего по видам услуг (руб.)","Доля в совокупной выручке (%)","Общее число отчётов по оценке","В т.ч. отчёты по оценке объектов с балансовой стоимостью более 1 млрд рублей","В т.ч. отчёты по оценке объектов госсектора","В т.ч. отчёты по оценке объектов ВПК (ОПК)","Доля выручки (%) от оказания оценочных услуг иностранным компаниям"]
["Оценка бизнеса и ценных бумаг\n(выручка, руб.)",{"$nulls":26},{"$f":"SUM(B4:AA4)","v":0},{"$f":"IF(AB14=0,\" \",AB4/AB14)","v":" "}]
["Оценка недвижимого имущества\n(выручка, руб.) ",{"$nulls":26},0,{"$f":"IF(AB14=0,\" \",AB5/AB14)","v":" "}]
["Оценка оборудования и транспортных средств (выручка, руб.)",{"$nulls":26},0,{"$f":"IF(AB14=0,\" \",AB6/AB14)","v":" "}]
["Переоценка активов / основных фондов (в т.ч. в связи с МСФО) (выручка, руб.)",{"$nulls":26},0,{"$f":"IF(AB14=0,\" \",AB7/AB14)","v":" "}]
["Оценка инвестиционных проектов\n(выручка, руб.)",{"$nulls":26},0,{"$f":"IF(AB14=0,\" \",AB8/AB14)","v":" "}]
["Оценка нематериальных активов и интеллектуальной собственности\n(выручка, руб.) ",{"$nulls":26},0,{"$f":"IF(AB14=0,\" \",AB9/AB14)","v":" "}]
["Другие виды оценки\n(выручка, руб.)",{"$nulls":26},0,{"$f":"IF(AB14=0,\" \",AB10/AB14)","v":" "}]
["Всего от оценочной деятельности\n(выручка, руб.): ",{"$f":"SUM(B4:B10)","v":0},{"$f":"SUM(C4:C10)","v":0},0,0,0,0,0,0,0,0,0,0,0,0,0,0,0,0,0,0,0,0,0,0,0,0,{"$f":"SUM(AB4:AB10)","v":0},{"$f":"SUM(AC4:AC10)","v":0},0,0,0,0,0]
["Аудит и консалтинг",{"$nulls":26},{"$f":"B12","v":0},{"$f":"IF(AB14=0,\" \",AB12/AB14)","v":" "}]
["Другие виды деятельности ",{"$nulls":26},{"$f":"B13","v":0},{"$f":"IF(AB14=0,\" \",AB13/AB14)","v":" "}]
["Итого по всем видам деятельности:",{"$nulls":26},{"$f":"SUM(AB11:AB13)","v":0},{"$f":"SUM(AC11:AC13)","v":0}]
[" После того, как эта таблица будет заполнена, пожалуйста, перейдите к заполнению следующего листа."]

{"sheet":"Цели оценки","index":2,"n_rows":12,"n_cols":13,"rows_kept":12,"cut":false,"hidden":false,"merged":[[0,0,0,12],[1,0,1,12],[11,0,11,12]]}
["Этот лист является обязательным для заполнения, пожалуйста, заполните этот лист."]
["В ячейках таблицы укажите объём выручки за 2025 год (без НДС), заработанный компанией (или группой) от предоставления оценочных услуг в зависимости от целей оценки. Выручку нужно структурировать без учёта доходов от услуг не относящихся к оценке, а также без учёта внутригрупповых оборотов. Обратите, пожалуйста, внимание, что сумма выручки по каждому направлению оценки в этом листе должна соответствовать сумме по аналогичному направлению оценки в листе \"Показатели\"."]
[" Направления оценки / цели оценки","Организация и реструктуризация бизнеса","Кредитование,\nзалоги","Страхование","Аренда","Купля / продажа, сделки по слияниям и поглощениям","Приватизация","Банкротство, ликвидация","Ипотека","Оспаривание результатов государственной кадастровой оценки","Другие ситуации (укажите какие)","Доля в совокупной выручке (%)","Всего по видам услуг (руб.)"]
["Оценка бизнеса и ценных бумаг",{"$nulls":10},{"$f":"IF(M11=0,\"\",M4/M11)","v":""},{"$f":"SUM(B4:K4)","v":0}]
["Оценка недвижимого имущества ",{"$nulls":10},{"$f":"IF(M11=0,\"\",M5/M11)","v":""},{"$f":"SUM(B5:K5)","v":0}]
["Оценка оборудования и транспортных средств",{"$nulls":10},{"$f":"IF(M11=0,\"\",M6/M11)","v":""},0]
["Переоценка активов / основных фондов (в т.ч. в связи с МСФО)",{"$nulls":10},{"$f":"IF(M11=0,\"\",M7/M11)","v":""},0]
["Оценка инвестиционных проектов ",{"$nulls":10},{"$f":"IF(M11=0,\"\",M8/M11)","v":""},0]
["Оценка нематериальных активов и интеллектуальной собственности ",{"$nulls":10},{"$f":"IF(M11=0,\"\",M9/M11)","v":""},0]
["Другие виды оценки (укажите, пожалуйста, здесь, какие именно)",{"$nulls":10},{"$f":"IF(M11=0,\"\",M10/M11)","v":""},0]
["Всего по оценочной деятельности: ",{"$f":"SUM(B4:B10)","v":0},0,0,0,0,0,0,0,0,0,{"$f":"SUM(L4:L10)","v":0},0]
[" После того, как эта таблица будет заполнена, пожалуйста, перейдите к заполнению следующего листа."]

{"sheet":"Аффилированные организации","index":3,"n_rows":4,"n_cols":6,"rows_kept":4,"cut":false,"hidden":false,"merged":[[2,0,2,5],[1,0,1,5],[0,0,0,5]]}
["Этот лист является обязательным для заполнения. Пояснения смотрите в комментариях к анкете в файле Metod.doc"]
["Укажите, пожалуйста, состоящие в группе аффилированные лица, осуществляющие оценочную деятельность. Приведите организации по одной в каждой строке, с учётом признаков аффилированности, рассматриваемых в рамках методики проекта (см. файл с методикой)."]
[" После того, как эта таблица будет заполнена, пожалуйста, перейдите к заполнению следующего листа"]
["№","Наименование организации","Вид деятельности","ИНН","Город","Признак аффилированности\n(см. выше или в файле Instruct.doc)"]

{"sheet":"Бланк подтверждения","index":4,"n_rows":60,"n_cols":3,"rows_kept":60,"cut":false,"hidden":false,"merged":[[29,1,29,2],[7,0,7,2],[26,1,26,2],[27,1,27,2],[8,0,8,2],[13,1,13,2],[16,1,16,2],[25,0,25,2],[28,1,28,2],[12,1,12,2],[15,1,15,2],[10,1,10,2],[17,1,17,2],[14,1,14,2],[22,1,22,2],[23,1,23,2],[24,1,24,2],[0,0,0,2],[2,0,2,2],[6,0,6,2],[5,0,5,2],[4,0,4,2],[1,0,1,2],[3,0,3,2],[11,1,11,2],[18,0,18,2],[19,1,19,2],[20,1,20,2],[21,1,21,2]]}
["Куда: RAEX (ООО \"РАЭКС-Аналитика\"); appraiser@raex-a.ru; тел.: (495) 617-07-77; www.raex-rr.com"]
[]
[{"$f":"\"От:  \"&'Общие сведения'!B8&\"; \"&'Общие сведения'!B9&\"; \"&'Общие сведения'!B14&\"; \"&'Общие сведения'!B15&\"\"","v":"От:  ; ; ; "}]
[]
["БЛАНК ПОДТВЕРЖДЕНИЯ "]
[]
["Настоящим подтверждаем достоверность данных, переданных в адрес ООО \"РАЭКС-Аналитика\""]
["в том числе суммарную выручку (в рублях, без НДС) от оценочной деятельности по итогам 2025 года:"]
[{"$f":"'Общие сведения'!C22","v":0}]
[]
["Основные показатели","На 31.12.2025"]
["Страховка ответственности компании (группы)",{"$f":"'Общие сведения'!B30:C30","v":0}]
["Число штатных оценщиков",{"$f":"'Общие сведения'!C34","v":0}]
["Страховка штатных оценщиков",{"$f":"'Общие сведения'!B36:C36","v":0}]
["Квалификационные аттестаты штатных оценщиков",{"$f":"'Общие сведения'!B37:C37","v":0}]
["Международные квалификации штатных оценщиков",{"$f":"'Общие сведения'!B39:C39","v":0}]
["Стаж от 10 лет и три квалификации у штатных оценщиков",{"$f":"'Общие сведения'!B41:C41","v":0}]
["Экспертный совет СРО - штатные оценщики",{"$f":"'Общие сведения'!B42:C42","v":0}]
[]
["Число оценщиков, работающих по совместительству",{"$f":"'Общие сведения'!C45","v":0}]
["Страховка оценщиков совместителей",{"$f":"'Общие сведения'!B47:C47","v":0}]
["Квалификационные аттестаты оценщиков совместителей",{"$f":"'Общие сведения'!B48:C48","v":0}]
["Международные квалификации оценщиков совместителей",{"$f":"'Общие сведения'!B50:C50","v":0}]
["Стаж от 10 лет и три квалификации у оценщиков совместителей",{"$f":"'Общие сведения'!B52:C52","v":0}]
["Экспертный совет СРО - оценщики совместители",{"$f":"'Общие сведения'!B53:C53","v":0}]
["Справочные показатели (за 2025 год)"]
["Отчёты по оценке",{"$f":"'Общие сведения'!C63","v":0}]
["Отчёты по оценке объектов стоимостью более 1 млрд. рублей",{"$f":"'Общие сведения'!C64","v":0}]
["Отчёты по оценке объектов госсектора",{"$f":"'Общие сведения'!C65","v":0}]
["Отчёты по оценке объектов ВПК (ОПК)",{"$f":"'Общие сведения'!C66","v":0}]
["Направления оценки","Доля выручки","За 2025 год"]
["Оценка бизнеса и ценных бумаг",{"$f":"Показатели!AC4","v":" "},{"$f":"Показатели!AB4","v":0}]
["Оценка недвижимого имущества",{"$f":"Показатели!AC5","v":" "},{"$f":"Показатели!AB5","v":0}]
["Оценка оборудования и транспортных средств",{"$f":"Показатели!AC6","v":" "},{"$f":"Показатели!AB6","v":0}]
["Переоценка активов / основных фондов, в том числе в целях МСФО",{"$f":"Показатели!AC7","v":" "},{"$f":"Показатели!AB7","v":0}]
["Оценка инвестиционных проектов",{"$f":"Показатели!AC8","v":" "},{"$f":"Показатели!AB8","v":0}]
["Оценка НМА и интеллектуальной собственности",{"$f":"Показатели!AC9","v":" "},{"$f":"Показатели!AB9","v":0}]
["Другие виды оценки",{"$f":"Показатели!AC10","v":" "},{"$f":"Показатели!AB10","v":0}]
["Всего по оценочной деятельности:",{"$f":"Показатели!AC11","v":0},{"$f":"Показатели!AB11","v":0}]
["Аудит и консалтинг",{"$f":"Показатели!AC12","v":" "},{"$f":"Показатели!AB12","v":0}]
["Другие виды деятельности",{"$f":"Показатели!AC13","v":" "},{"$f":"Показатели!AB13","v":0}]
["Итого по всем видам деятельности:",{"$f":"Показатели!AC14","v":0},{"$f":"Показатели!AB14","v":0}]
["Цели оценки","Доля выручки","За 2025 год"]
["Организация и реструктуризация бизнеса",{"$f":"IF(C54=0,\" \",C44/C54)","v":" "},{"$f":"'Цели оценки'!B11","v":0}]
["Кредитование, залоги",{"$f":"IF(C54=0,\" \",C45/C54)","v":" "},{"$f":"'Цели оценки'!C11","v":0}]
["Страхование",{"$f":"IF(C54=0,\" \",C46/C54)","v":" "},{"$f":"'Цели оценки'!D11","v":0}]
["Аренда",{"$f":"IF(C54=0,\" \",C47/C54)","v":" "},{"$f":"'Цели оценки'!E11","v":0}]
["Купля-продажа, сделки по слияниям и поглощениям",{"$f":"IF(C54=0,\" \",C48/C54)","v":" "},{"$f":"'Цели оценки'!F11","v":0}]
["Приватизация",{"$f":"IF(C54=0,\" \",C49/C54)","v":" "},{"$f":"'Цели оценки'!G11","v":0}]
["Банкротство, ликвидация",{"$f":"IF(C54=0,\" \",C50/C54)","v":" "},{"$f":"'Цели оценки'!H11","v":0}]
["Ипотека",{"$f":"IF(C54=0,\" \",C51/C54)","v":" "},{"$f":"'Цели оценки'!I11","v":0}]
["Оспаривание результатов государственной кадастровой оценки",{"$f":"IF(C54=0,\" \",C52/C54)","v":" "},{"$f":"'Цели оценки'!J11","v":0}]
["Другие ситуации",{"$f":"IF(C54=0,\" \",C53/C54)","v":" "},{"$f":"'Цели оценки'!K11","v":0}]
[{"$f":"'Цели оценки'!A11","v":"Всего по оценочной деятельности: "},{"$f":"SUM(B44:B53)","v":0},{"$f":"SUM(C44:C53)","v":0}]
[]
["Достоверность данных подтверждаю:"]
[null,null,"Место"]
[{"$f":"'Общие сведения'!B80","v":0},null,"для"]
[{"$f":"'Общие сведения'!C80","v":0},null,"печати"]
["            (Подпись)"]